[Event "23rd ETCC Women 2021"]
[Site "Catez"]
[Date "2021.11.13"]
[Round "2.12"]
[White "Kulon, Klaudia"]
[Black "Terbe, Julianna"]
[Result "1-0"]
[ECO "D00"]
[WhiteElo "2328"]
[BlackElo "2318"]
[Annotator "NA"]
[PlyCount "81"]
[EventDate "2021.11.08"]
[EventType "team-tourn"]
[EventCountry "SLO"]
[SourceTitle "playchess.com"]
[Source "ChessBase"]
[SourceQuality "1"]
[WhiteTeam "Poland"]
[BlackTeam "Hungary"]
[WhiteTeamCountry "POL"]
[BlackTeamCountry "HUN"]
[TimeControl "40/5400+30:1800+30"]

1. d4 {[%emt 0:00:03]} d5 {[%emt 0:00:08]} 2. Bg5 {[%emt 0:00:08]} f6 {[%emt 0:
02:51]} 3. Bd2 {[%emt 0:00:18]} Bf5 {[%emt 0:03:29]} 4. e3 {[%emt 0:01:18]} e6
{[%emt 0:01:06]} 5. c4 {[%emt 0:02:34]} c6 {[%emt 0:00:30]} 6. Nc3 {[%emt 0:00:
47]} Nd7 {[%emt 0:01:47]} 7. Nf3 {[%emt 0:01:34]} g5 {[%emt 0:02:39]} 8. c5 {
[%emt 0:08:39]} h5 {[%emt 0:12:33]} 9. Qe2 {[%emt 0:06:40]} Kf7 {[%emt 0:14:33]
} 10. e4 {[%emt 0:02:43]} dxe4 {[%emt 0:02:46]} 11. Nxe4 {[%emt 0:00:05]} g4 {
[%emt 0:04:51]} 12. Ng1 {[%emt 0:03:48]} Qc7 {[%emt 0:06:06]} 13. Ng3 {[%emt 0:
06:11]} Bg6 {[%emt 0:02:17]} 14. h3 {[%emt 0:01:15]} Bg7 {[%emt 0:07:17]} 15.
hxg4 {[%emt 0:03:35]} hxg4 {[%emt 0:00:06]} 16. Rxh8 {[%emt 0:00:09]} Bxh8 {
[%emt 0:00:04]} 17. Qxg4 {[%emt 0:02:26]} f5 {[%emt 0:02:30]} 18. Qf4 {[%emt 0:
01:40]} Qxf4 {[%emt 0:07:13]} 19. Bxf4 {[%emt 0:00:03]} Bxd4 {[%emt 0:07:50]}
20. O-O-O {[%emt 0:03:12]} e5 {[%emt 0:02:04]} 21. Nf3 {[%emt 0:12:48]} exf4 {
[%emt 0:02:08]} 22. Rxd4 {[%emt 0:00:13]} Nxc5 {[%emt 0:01:47]} 23. Bc4+ {
[%emt 0:03:23]} Kg7 {[%emt 0:03:33]} 24. Ne2 {[%emt 0:00:56]} Nf6 {[%emt 0:02:
09]} 25. Nxf4 {[%emt 0:02:44]} b5 {[%emt 0:04:30]} 26. b4 {[%emt 0:04:01]} Nce4
{[%emt 0:00:42]} 27. Bb3 {[%emt 0:00:05]} Bf7 {[%emt 0:02:27]} 28. Bxf7 {
[%emt 0:02:52]} Kxf7 {[%emt 0:00:02]} 29. Ne5+ {[%emt 0:00:27]} Kg7 {[%emt 0:
01:19]} 30. f3 {[%emt 0:00:44]} Re8 {[%emt 0:02:55]} 31. Ned3 {[%emt 0:02:32]}
Nc3 {[%emt 0:00:57]} 32. Rd6 {[%emt 0:00:04]} Ne2+ {[%emt 0:00:45]} 33. Kd2 {
[%emt 0:01:11]} Nxf4 {[%emt 0:00:01]} 34. Nxf4 {[%emt 0:00:02]} a5 {[%emt 0:00:
39]} 35. a3 {[%emt 0:01:55]} axb4 {[%emt 0:00:15]} 36. axb4 {[%emt 0:00:01]}
Rc8 {[%emt 0:00:44]} 37. Kd3 {[%emt 0:00:31]} Ne8 {[%emt 0:00:45]} 38. Rd7+ {
[%emt 0:03:07]} Kf6 {[%emt 0:00:26]} 39. Kd4 {[%emt 0:00:03]} Ng7 {[%emt 0:00:
37]} 40. Rd6+ {[%emt 0:01:49]} Kg5 {[%emt 0:00:34]} 41. g3 {[%emt 0:30:17]} 1-0

[Event "23rd ETCC Women 2021"]
[Site "Catez"]
[Date "2021.11.13"]
[Round "2.13"]
[White "Ushenina, Anna"]
[Black "Peng, Zhaoqin"]
[Result "1/2-1/2"]
[ECO "D07"]
[WhiteElo "2426"]
[BlackElo "2351"]
[Annotator "RC"]
[PlyCount "168"]
[EventDate "2021.11.08"]
[EventType "team-tourn"]
[EventCountry "SLO"]
[SourceTitle "playchess.com"]
[Source "ChessBase"]
[SourceQuality "1"]
[WhiteTeam "Ukraine"]
[BlackTeam "Netherlands"]
[WhiteTeamCountry "UKR"]
[BlackTeamCountry "NED"]
[TimeControl "40/5400+30:1800+30"]

1. d4 {[%emt 0:00:07]} d5 {[%emt 0:00:08]} 2. c4 {[%emt 0:00:30]} dxc4 {
[%emt 0:00:07]} 3. e4 {[%emt 0:00:42]} Nc6 {[%emt 0:00:52]} 4. Nf3 {[%emt 0:00:
48]} Bg4 {[%emt 0:00:38]} 5. d5 {[%emt 0:01:20]} Ne5 {[%emt 0:00:56]} 6. Bf4 {
[%emt 0:00:35]} Ng6 {[%emt 0:05:14]} 7. Be3 {[%emt 0:00:30]} Nf6 {[%emt 0:02:
29]} 8. Nc3 {[%emt 0:01:42]} e6 {[%emt 0:00:48]} 9. Qa4+ {[%emt 0:25:23]} Qd7 {
[%emt 0:04:07]} 10. Nb5 {[%emt 0:23:18]} Bd6 {[%emt 0:19:08]} 11. dxe6 {
[%emt 0:12:26]} Bxe6 {[%emt 0:08:20]} 12. O-O-O {[%emt 0:09:13]} O-O {[%emt 0:
02:36]} 13. e5 {[%emt 0:00:04]} a6 {[%emt 0:02:09]} 14. Nc3 {[%emt 0:01:10]}
Qxa4 {[%emt 0:00:07]} 15. Nxa4 {[%emt 0:00:01]} Nxe5 {[%emt 0:00:17]} 16. Be2 {
[%emt 0:02:05]} b5 {[%emt 0:10:15]} 17. Nc5 {[%emt 0:01:03]} Neg4 {[%emt 0:04:
15]} 18. Bd4 {[%emt 0:00:20]} Bf4+ {[%emt 0:06:02]} 19. Kb1 {[%emt 0:00:05]}
Bf5+ {[%emt 0:00:12]} 20. Ka1 {[%emt 0:00:13]} Rfe8 {[%emt 0:00:51]} 21. Rde1 {
[%emt 0:01:35]} Rad8 {[%emt 0:07:25]} 22. Nxa6 {[%emt 0:09:30]} Ra8 {[%emt 0:
06:26]} 23. Nh4 {[%emt 0:00:09]} Be6 {[%emt 0:09:54]} 24. Nc5 {[%emt 0:00:47]}
Bd2 {[%emt 0:03:13]} 25. Rd1 {[%emt 0:00:53]} Bb4 {[%emt 0:03:12]} 26. Nxe6 {
[%emt 0:02:54]} Rxe6 {[%emt 0:00:13]} 27. Bf3 {[%emt 0:01:21]} Rae8 {[%emt 0:
00:18]} 28. a3 {[%emt 0:01:52]} Bf8 {[%emt 0:00:23]} 29. Nf5 {[%emt 0:01:50]}
Ne5 {[%emt 0:01:10]} 30. Bxe5 {[%emt 0:00:30]} Rxe5 {[%emt 0:00:01]} 31. Nd4 {
[%emt 0:00:10]} Bd6 {[%emt 0:01:51]} 32. Bc6 {[%emt 0:01:25]} Rb8 {[%emt 0:00:
03]} 33. f4 {[%emt 0:01:17]} Rc5 {[%emt 0:00:28]} 34. g3 {[%emt 0:00:10]} b4 {
[%emt 0:00:54]} 35. a4 {[%emt 0:01:17]} Ng4 {[%emt 0:01:18]} 36. Rhe1 {[%emt 0:
00:38]} Nf2 {[%emt 0:00:36]} 37. Rd2 {[%emt 0:00:18]} Nd3 {[%emt 0:00:18]} 38.
Rb1 {[%emt 0:00:43]} b3 {[%emt 0:00:39]} 39. Rbd1 {[%emt 0:00:32]} Nb4 {
[%emt 0:00:28]} 40. Bb5 {[%emt 0:00:18]} Ra8 {[%emt 0:01:35]} 41. Rc1 {[%emt 0:
04:18]} g5 {[%emt 0:17:41]} 42. Kb1 {[%emt 0:22:03]} gxf4 {[%emt 0:04:51]} 43.
Rxc4 {[%emt 0:05:03]} Rxc4 {[%emt 0:00:37]} 44. Bxc4 {[%emt 0:00:02]} Rxa4 {
[%emt 0:00:12]} 45. Bxb3 {[%emt 0:00:19]} Ra5 {[%emt 0:00:36]} 46. gxf4 {
[%emt 0:00:48]} Bxf4 {[%emt 0:02:22]} 47. Rf2 {[%emt 0:00:26]} Rg5 {[%emt 0:05:
54]} 48. Bxf7+ {[%emt 0:01:02]} Kh8 {[%emt 0:01:24]} 49. Rf1 {[%emt 0:00:42]}
Bxh2 {[%emt 0:00:39]} 50. Ne6 {[%emt 0:00:22]} Ra5 {[%emt 0:00:47]} 51. Rh1 {
[%emt 0:00:38]} Rf5 {[%emt 0:00:21]} 52. b3 {[%emt 0:00:21]} Be5 {[%emt 0:00:
22]} 53. Bg6 {[%emt 0:00:22]} Rf2 {[%emt 0:00:24]} 54. Rxh7+ {[%emt 0:00:26]}
Kg8 {[%emt 0:00:00]} 55. Kc1 {[%emt 0:00:33]} Na2+ {[%emt 0:01:21]} 56. Kd1 {
[%emt 0:00:06]} Nc3+ {[%emt 0:00:19]} 57. Ke1 {[%emt 0:00:48]} Rg2 {[%emt 0:00:
10]} 58. Rh5 {[%emt 0:00:25]} Bg3+ {[%emt 0:00:48]} 59. Kf1 {[%emt 0:00:03]}
Rf2+ {[%emt 0:00:04]} 60. Kg1 {[%emt 0:00:19]} Ne2+ {[%emt 0:00:26]} 61. Kh1 {
[%emt 0:00:01]} Bd6 {[%emt 0:01:03]} 62. Bh7+ {[%emt 0:02:01]} Kf7 {[%emt 0:00:
07]} 63. Ng5+ {[%emt 0:00:10]} Ke7 {[%emt 0:00:20]} 64. Ne4 {[%emt 0:00:11]}
Rf4 {[%emt 0:01:13]} 65. Rh3 {[%emt 0:00:58]} Be5 {[%emt 0:00:26]} 66. Kg2 {
[%emt 0:00:30]} Rf7 {[%emt 0:00:23]} 67. Rh6 {[%emt 0:00:39]} Nd4 {[%emt 0:00:
38]} 68. b4 {[%emt 0:00:35]} Rg7+ {[%emt 0:00:31]} 69. Kf2 {[%emt 0:00:26]} Bf4
{[%emt 0:00:30]} 70. Rh4 {[%emt 0:00:33]} Be5 {[%emt 0:00:28]} 71. Rh5 {
[%emt 0:00:30]} Bf4 {[%emt 0:00:25]} 72. Rh4 {[%emt 0:00:04]} Be5 {[%emt 0:00:
34]} 73. Rh5 {[%emt 0:00:05]} Rf7+ {[%emt 0:00:23]} 74. Kg2 {[%emt 0:00:19]}
Bf4 {[%emt 0:00:33]} 75. Bg6 {[%emt 0:00:16]} Rg7 {[%emt 0:00:21]} 76. Rh7 {
[%emt 0:00:07]} Rxh7 {[%emt 0:00:13]} 77. Bxh7 {[%emt 0:00:01]} Bd6 {[%emt 0:
00:55]} 78. Nc3 {[%emt 0:01:41]} Kd7 {[%emt 0:00:40]} 79. Na2 {[%emt 0:01:07]}
Kc6 {[%emt 0:00:24]} 80. Kf2 {[%emt 0:00:49]} Kb5 {[%emt 0:00:25]} 81. Ke3 {
[%emt 0:00:07]} Nc6 {[%emt 0:00:28]} 82. Be4 {[%emt 0:00:19]} Ne5 {[%emt 0:00:
34]} 83. Kd4 {[%emt 0:00:22]} Nc6+ {[%emt 0:00:32]} 84. Bxc6+ {[%emt 0:00:07]}
Kxc6 {[%emt 0:00:02]} 1/2-1/2

[Event "23rd ETCC Women 2021"]
[Site "Catez"]
[Date "2021.11.13"]
[Round "2.14"]
[White "Roebers, Eline"]
[Black "Osmak, Iulija"]
[Result "1-0"]
[ECO "B11"]
[WhiteElo "2304"]
[BlackElo "2423"]
[Annotator "NA"]
[PlyCount "101"]
[EventDate "2021.11.08"]
[EventType "team-tourn"]
[EventCountry "SLO"]
[SourceTitle "playchess.com"]
[Source "ChessBase"]
[SourceQuality "1"]
[WhiteTeam "Netherlands"]
[BlackTeam "Ukraine"]
[WhiteTeamCountry "NED"]
[BlackTeamCountry "UKR"]
[TimeControl "40/5400+30:1800+30"]

1. e4 {[%emt 0:00:03]} c6 {[%emt 0:00:03]} 2. Nf3 {[%emt 0:00:27]} d5 {[%emt 0:
00:04]} 3. Nc3 {[%emt 0:00:16]} Bg4 {[%emt 0:00:06]} 4. h3 {[%emt 0:00:53]}
Bxf3 {[%emt 0:00:06]} 5. Qxf3 {[%emt 0:00:05]} e6 {[%emt 0:00:04]} 6. d4 {
[%emt 0:00:55]} dxe4 {[%emt 0:00:21]} 7. Nxe4 {[%emt 0:00:07]} Qxd4 {[%emt 0:
00:42]} 8. Bg5 {[%emt 0:00:28]} Nd7 {[%emt 0:08:17]} 9. Rd1 {[%emt 0:02:32]}
Qe5 {[%emt 0:05:41]} 10. Bf4 {[%emt 0:01:50]} Qa5+ {[%emt 0:16:17]} 11. Bd2 {
[%emt 0:01:13]} Qf5 {[%emt 0:01:29]} 12. Qxf5 {[%emt 0:10:59]} exf5 {[%emt 0:
00:07]} 13. Ng3 {[%emt 0:00:03]} g6 {[%emt 0:13:38]} 14. Bc3 {[%emt 0:00:22]}
f6 {[%emt 0:01:30]} 15. Bc4 {[%emt 0:03:14]} O-O-O {[%emt 0:08:04]} 16. O-O {
[%emt 0:02:47]} Kc7 {[%emt 0:01:06]} 17. Ne2 {[%emt 0:05:09]} Ne5 {[%emt 0:06:
51]} 18. Bb3 {[%emt 0:01:38]} Rxd1 {[%emt 0:08:24]} 19. Rxd1 {[%emt 0:00:04]}
Bc5 {[%emt 0:00:27]} 20. Nf4 {[%emt 0:02:28]} Bb6 {[%emt 0:01:26]} 21. Bb4 {
[%emt 0:02:12]} Kc8 {[%emt 0:02:15]} 22. Bf8 {[%emt 0:06:55]} h5 {[%emt 0:01:
00]} 23. Kf1 {[%emt 0:09:00]} g5 {[%emt 0:02:21]} 24. Bg7 {[%emt 0:04:40]} Rh7
{[%emt 0:00:27]} 25. Nxh5 {[%emt 0:00:03]} Rxh5 {[%emt 0:12:12]} 26. Bxg8 {
[%emt 0:00:17]} g4 {[%emt 0:01:15]} 27. Bxf6 {[%emt 0:00:22]} Bc7 {[%emt 0:00:
31]} 28. h4 {[%emt 0:01:56]} g3 {[%emt 0:02:25]} 29. f3 {[%emt 0:00:50]} Kb8 {
[%emt 0:03:09]} 30. Re1 {[%emt 0:02:47]} f4 {[%emt 0:00:21]} 31. Bg5 {[%emt 0:
00:04]} Rh8 {[%emt 0:01:03]} 32. Bxf4 {[%emt 0:01:09]} Rxh4 {[%emt 0:01:22]}
33. Rxe5 {[%emt 0:00:24]} Rh1+ {[%emt 0:01:16]} 34. Ke2 {[%emt 0:00:04]} Bxe5 {
[%emt 0:00:05]} 35. Bxe5+ {[%emt 0:00:04]} Kc8 {[%emt 0:00:06]} 36. Bxg3 {
[%emt 0:00:04]} Kd7 {[%emt 0:00:24]} 37. Be5 {[%emt 0:00:21]} Rc1 {[%emt 0:01:
01]} 38. Bb3 {[%emt 0:00:18]} b5 {[%emt 0:00:48]} 39. g4 {[%emt 0:00:24]} c5 {
[%emt 0:01:02]} 40. Kd2 {[%emt 0:00:04]} Rg1 {[%emt 0:00:50]} 41. Bd5 {[%emt 0:
30:08]} Rg2+ {[%emt 0:30:21]} 42. Kc3 {[%emt 0:00:23]} a5 {[%emt 0:00:37]} 43.
Be4 {[%emt 0:00:51]} Ke6 {[%emt 0:00:39]} 44. Bf4 {[%emt 0:00:56]} a4 {[%emt 0:
01:13]} 45. g5 {[%emt 0:00:30]} Kf7 {[%emt 0:00:00]} 46. Be3 {[%emt 0:00:00]}
Ke6 {[%emt 0:00:00]} 47. Bxc5 {[%emt 0:00:00]} Rxg5 {[%emt 0:00:00]} 48. Kb4 {
[%emt 0:00:00]} Kd7 {[%emt 0:00:00]} 49. Kxb5 {[%emt 0:00:00]} Kc7 {[%emt 0:00:
00]} 50. b4 {[%emt 0:00:00]} a3 {[%emt 0:00:00]} 51. Ka4 {[%emt 0:00:00]} 1-0

[Event "23rd ETCC Women 2021"]
[Site "Catez"]
[Date "2021.11.13"]
[Round "2.15"]
[White "Gaponenko, Inna"]
[Black "Ratsma, Rosa"]
[Result "1-0"]
[ECO "B90"]
[WhiteElo "2339"]
[BlackElo "2272"]
[Annotator "NA"]
[PlyCount "85"]
[EventDate "2021.11.08"]
[EventType "team-tourn"]
[EventCountry "SLO"]
[SourceTitle "playchess.com"]
[Source "ChessBase"]
[SourceQuality "1"]
[WhiteTeam "Ukraine"]
[BlackTeam "Netherlands"]
[WhiteTeamCountry "UKR"]
[BlackTeamCountry "NED"]
[TimeControl "40/5400+30:1800+30"]

1. e4 {[%emt 0:00:04]} c5 {[%emt 0:00:08]} 2. Nf3 {[%emt 0:00:09]} d6 {[%emt 0:
00:15]} 3. d4 {[%emt 0:00:07]} cxd4 {[%emt 0:00:10]} 4. Nxd4 {[%emt 0:00:06]}
Nf6 {[%emt 0:00:10]} 5. Nc3 {[%emt 0:00:09]} a6 {[%emt 0:00:10]} 6. h3 {
[%emt 0:00:12]} e5 {[%emt 0:00:19]} 7. Nb3 {[%emt 0:00:15]} Be7 {[%emt 0:00:34]
} 8. Be3 {[%emt 0:14:29]} h6 {[%emt 0:03:29]} 9. Bc4 {[%emt 0:25:50]} Qc7 {
[%emt 0:06:53]} 10. Bd5 {[%emt 0:04:03]} Be6 {[%emt 0:09:24]} 11. O-O {[%emt 0:
11:38]} g5 {[%emt 0:17:25]} 12. Nc1 {[%emt 0:20:01]} Nbd7 {[%emt 0:07:17]} 13.
N1e2 {[%emt 0:04:49]} Nb6 {[%emt 0:11:57]} 14. Ng3 {[%emt 0:05:59]} O-O-O {
[%emt 0:15:05]} 15. Bxb6 {[%emt 0:03:12]} Qxb6 {[%emt 0:00:06]} 16. Nf5 {
[%emt 0:00:02]} Rd7 {[%emt 0:08:43]} 17. Na4 {[%emt 0:03:00]} Qc7 {[%emt 0:01:
06]} 18. c4 {[%emt 0:00:12]} Bxf5 {[%emt 0:05:52]} 19. exf5 {[%emt 0:00:04]}
Nxd5 {[%emt 0:01:09]} 20. Qxd5 {[%emt 0:03:10]} Bf6 {[%emt 0:02:19]} 21. Nc3 {
[%emt 0:02:02]} Qc6 {[%emt 0:01:41]} 22. Rad1 {[%emt 0:00:38]} Bd8 {[%emt 0:01:
49]} 23. Ne4 {[%emt 0:00:30]} Kc7 {[%emt 0:02:57]} 24. b4 {[%emt 0:00:45]} f6 {
[%emt 0:01:23]} 25. Qd3 {[%emt 0:00:44]} h5 {[%emt 0:01:27]} 26. b5 {[%emt 0:
00:26]} axb5 {[%emt 0:00:21]} 27. cxb5 {[%emt 0:00:09]} Qb6 {[%emt 0:00:14]}
28. Nc3 {[%emt 0:00:46]} Kb8 {[%emt 0:00:27]} 29. Nd5 {[%emt 0:00:10]} Qa5 {
[%emt 0:00:31]} 30. Rc1 {[%emt 0:00:43]} g4 {[%emt 0:01:12]} 31. Rc3 {[%emt 0:
00:49]} Qa4 {[%emt 0:00:35]} 32. b6 {[%emt 0:00:27]} e4 {[%emt 0:00:42]} 33.
Rfc1 {[%emt 0:00:38]} Bxb6 {[%emt 0:00:31]} 34. Nxb6 {[%emt 0:00:15]} exd3 {
[%emt 0:00:12]} 35. Nxa4 {[%emt 0:00:04]} gxh3 {[%emt 0:00:41]} 36. Rxd3 {
[%emt 0:00:51]} hxg2 {[%emt 0:00:20]} 37. Kxg2 {[%emt 0:00:32]} Rg8+ {[%emt 0:
00:45]} 38. Kh3 {[%emt 0:00:34]} Rc7 {[%emt 0:00:31]} 39. Rxc7 {[%emt 0:00:39]}
Kxc7 {[%emt 0:00:02]} 40. Nc3 {[%emt 0:00:01]} Kc6 {[%emt 0:00:49]} 41. Ne4 {
[%emt 0:30:40]} Rg4 {[%emt 0:04:29]} 42. Rc3+ {[%emt 0:00:00]} Kb5 {[%emt 0:05:
01]} 43. f3 {[%emt 0:00:00]} 1-0

[Event "23rd ETCC Women 2021"]
[Site "Catez"]
[Date "2021.11.13"]
[Round "2.16"]
[White "Van Foreest, Machteld"]
[Black "Zhukova, Natalia"]
[Result "0-1"]
[ECO "C58"]
[WhiteElo "2141"]
[BlackElo "2331"]
[Annotator "ChessBase"]
[PlyCount "170"]
[EventDate "2021.11.08"]
[EventType "team-tourn"]
[EventCountry "SLO"]
[SourceTitle "playchess.com"]
[Source "ChessBase"]
[SourceQuality "1"]
[WhiteTeam "Netherlands"]
[BlackTeam "Ukraine"]
[WhiteTeamCountry "NED"]
[BlackTeamCountry "UKR"]
[TimeControl "40/5400+30:1800+30"]

1. e4 {[%emt 0:00:03]} e5 {[%emt 0:00:10]} 2. Nf3 {[%emt 0:00:11]} Nc6 {
[%emt 0:00:11]} 3. Bc4 {[%emt 0:00:12]} Nf6 {[%emt 0:00:19]} 4. Ng5 {[%emt 0:
02:11]} d5 {[%emt 0:00:16]} 5. exd5 {[%emt 0:00:06]} Na5 {[%emt 0:00:11]} 6.
Bb5+ {[%emt 0:00:02]} c6 {[%emt 0:00:15]} 7. dxc6 {[%emt 0:00:03]} bxc6 {
[%emt 0:00:07]} 8. Qf3 {[%emt 0:00:03]} Be7 {[%emt 0:08:07]} 9. Bd3 {[%emt 0:
00:40]} h6 {[%emt 0:06:37]} 10. Ne4 {[%emt 0:00:37]} Nd5 {[%emt 0:00:23]} 11.
Ng3 {[%emt 0:06:46]} g6 {[%emt 0:02:41]} 12. O-O {[%emt 0:11:03]} Nf4 {[%emt 0:
32:50]} 13. b4 {[%emt 0:14:33]} Nxd3 {[%emt 0:06:08]} 14. cxd3 {[%emt 0:01:05]}
Bxb4 {[%emt 0:10:41]} 15. Bb2 {[%emt 0:02:21]} Bd6 {[%emt 0:15:03]} 16. Ne4 {
[%emt 0:13:03]} Bc7 {[%emt 0:00:56]} 17. Nf6+ {[%emt 0:12:56]} Kf8 {[%emt 0:00:
07]} 18. Nc3 {[%emt 0:05:19]} Ba6 {[%emt 0:03:25]} 19. Nce4 {[%emt 0:09:21]}
Qxd3 {[%emt 0:07:13]} 20. Qxd3 {[%emt 0:11:09]} Bxd3 {[%emt 0:00:02]} 21. Rfe1
{[%emt 0:00:08]} Nc4 {[%emt 0:02:34]} 22. Bc3 {[%emt 0:00:27]} Kg7 {[%emt 0:00:
30]} 23. Nd7 {[%emt 0:03:20]} Rhd8 {[%emt 0:01:21]} 24. Nef6 {[%emt 0:02:33]}
Bf5 {[%emt 0:00:44]} 25. d3 {[%emt 0:00:56]} Ba5 {[%emt 0:01:10]} 26. Bxa5 {
[%emt 0:01:33]} Nxa5 {[%emt 0:00:02]} 27. Rxe5 {[%emt 0:00:04]} Bxd7 {[%emt 0:
01:18]} 28. Nxd7 {[%emt 0:00:01]} Rxd7 {[%emt 0:00:10]} 29. Rxa5 {[%emt 0:00:
03]} Rxd3 {[%emt 0:00:09]} 30. Re1 {[%emt 0:02:37]} Re8 {[%emt 0:01:09]} 31.
Kf1 {[%emt 0:01:26]} Rxe1+ {[%emt 0:00:07]} 32. Kxe1 {[%emt 0:00:02]} Rd7 {
[%emt 0:00:12]} 33. Rc5 {[%emt 0:00:39]} Rc7 {[%emt 0:00:04]} 34. Kd2 {[%emt 0:
00:23]} Kf6 {[%emt 0:00:02]} 35. Kd3 {[%emt 0:00:55]} Ke6 {[%emt 0:00:04]} 36.
Rc2 {[%emt 0:00:10]} Kd5 {[%emt 0:00:46]} 37. Kc3 {[%emt 0:00:09]} c5 {[%emt 0:
01:34]} 38. Rd2+ {[%emt 0:00:55]} Kc6 {[%emt 0:00:04]} 39. Kc4 {[%emt 0:00:30]}
Rb7 {[%emt 0:01:23]} 40. Re2 {[%emt 0:00:36]} Rd7 {[%emt 0:00:50]} 41. Rb2 {
[%emt 0:30:57]} Rd1 {[%emt 0:30:31]} 42. Re2 {[%emt 0:00:00]} Rc1+ {[%emt 0:00:
00]} 43. Kd3 {[%emt 0:00:00]} Rd1+ {[%emt 0:00:00]} 44. Kc4 {[%emt 0:00:00]}
Rd4+ {[%emt 0:00:00]} 45. Kc3 {[%emt 0:00:00]} a5 {[%emt 0:00:00]} 46. Re7 {
[%emt 0:00:00]} Rf4 {[%emt 0:00:00]} 47. f3 {[%emt 0:00:00]} h5 {[%emt 0:00:00]
} 48. Ra7 {[%emt 0:00:00]} Kb6 {[%emt 0:00:00]} 49. Ra8 {[%emt 0:00:00]} h4 {
[%emt 0:00:00]} 50. Rh8 {[%emt 0:00:00]} Kb5 {[%emt 0:00:00]} 51. Kb3 {[%emt 0:
00:00]} Kc6 {[%emt 0:03:25]} 52. Kc3 {[%emt 0:00:00]} Ra4 {[%emt 0:00:56]} 53.
Kb3 {[%emt 0:00:00]} Rb4+ {[%emt 0:00:02]} 54. Kc3 {[%emt 0:00:00]} Rf4 {
[%emt 0:00:58]} 55. Kb3 {[%emt 0:00:00]} Kd5 {[%emt 0:00:20]} 56. Kc3 {[%emt 0:
00:00]} Ra4 {[%emt 0:01:21]} 57. Kb3 {[%emt 0:00:00]} Rb4+ {[%emt 0:00:10]} 58.
Kc3 {[%emt 0:00:00]} Rd4 {[%emt 0:01:17]} 59. Rd8+ {[%emt 0:00:00]} Ke5 {
[%emt 0:00:01]} 60. Rc8 {[%emt 0:00:00]} Ra4 {[%emt 0:00:40]} 61. Kb3 {[%emt 0:
00:00]} Rb4+ {[%emt 0:00:05]} 62. Kc3 {[%emt 0:00:00]} Kd6 {[%emt 0:01:12]} 63.
Ra8 {[%emt 0:00:00]} a4 {[%emt 0:00:17]} 64. Ra6+ {[%emt 0:00:01]} Kd5 {
[%emt 0:00:24]} 65. g3 {[%emt 0:01:35]} h3 {[%emt 0:00:25]} 66. Ra8 {[%emt 0:
00:38]} Rb1 {[%emt 0:00:38]} 67. Rd8+ {[%emt 0:00:37]} Ke6 {[%emt 0:00:45]} 68.
Re8+ {[%emt 0:03:59]} Kd6 {[%emt 0:00:18]} 69. Rd8+ {[%emt 0:00:32]} Ke7 {
[%emt 0:00:07]} 70. Rh8 {[%emt 0:00:23]} Rf1 {[%emt 0:00:34]} 71. Rxh3 {
[%emt 0:00:45]} Rxf3+ {[%emt 0:00:05]} 72. Kc2 {[%emt 0:01:36]} Rf2+ {[%emt 0:
00:24]} 73. Kb1 {[%emt 0:00:03]} g5 {[%emt 0:01:32]} 74. Rh5 {[%emt 0:00:26]}
f6 {[%emt 0:00:33]} 75. h4 {[%emt 0:01:39]} g4 {[%emt 0:00:02]} 76. Rh7+ {
[%emt 0:01:37]} Ke6 {[%emt 0:00:10]} 77. Rg7 {[%emt 0:00:31]} f5 {[%emt 0:00:
09]} 78. Rg6+ {[%emt 0:01:20]} Ke5 {[%emt 0:00:13]} 79. Rc6 {[%emt 0:00:22]}
Kd4 {[%emt 0:00:34]} 80. Rd6+ {[%emt 0:01:01]} Kc3 {[%emt 0:00:17]} 81. Rd1 {
[%emt 0:00:02]} f4 {[%emt 0:02:03]} 82. Rc1+ {[%emt 0:01:21]} Kd4 {[%emt 0:00:
23]} 83. Rd1+ {[%emt 0:00:11]} Ke3 {[%emt 0:00:14]} 84. h5 {[%emt 0:00:47]}
fxg3 {[%emt 0:00:09]} 85. h6 {[%emt 0:00:04]} Rh2 {[%emt 0:00:18]} 0-1

[Event "23rd ETCC Women 2021"]
[Site "Catez"]
[Date "2021.11.13"]
[Round "2.17"]
[White "Cramling, Pia"]
[Black "Mammadzada, Gunay"]
[Result "0-1"]
[ECO "D45"]
[WhiteElo "2457"]
[BlackElo "2459"]
[Annotator "ChessBase"]
[PlyCount "80"]
[EventDate "2021.11.08"]
[EventType "team-tourn"]
[EventCountry "SLO"]
[SourceTitle "playchess.com"]
[Source "ChessBase"]
[SourceQuality "1"]
[WhiteTeam "Sweden"]
[BlackTeam "Azerbaijan"]
[WhiteTeamCountry "SWE"]
[BlackTeamCountry "AZE"]
[TimeControl "40/5400+30:1800+30"]

1. d4 {[%emt 0:00:04]} d5 {[%emt 0:00:07]} 2. c4 {[%emt 0:00:11]} c6 {[%emt 0:
00:14]} 3. Nf3 {[%emt 0:00:34]} Nf6 {[%emt 0:00:07]} 4. Nc3 {[%emt 0:00:14]} e6
{[%emt 0:00:12]} 5. e3 {[%emt 0:00:29]} Nbd7 {[%emt 0:00:58]} 6. Ne5 {[%emt 0:
00:53]} Bb4 {[%emt 0:15:30]} 7. Bd2 {[%emt 0:05:35]} O-O {[%emt 0:09:42]} 8. a3
{[%emt 0:15:25]} Bd6 {[%emt 0:21:12]} 9. f4 {[%emt 0:06:03]} c5 {[%emt 0:04:13]
} 10. cxd5 {[%emt 0:07:40]} exd5 {[%emt 0:07:11]} 11. Bd3 {[%emt 0:10:02]} cxd4
{[%emt 0:00:25]} 12. exd4 {[%emt 0:00:07]} Qb6 {[%emt 0:00:26]} 13. Nb5 {
[%emt 0:09:17]} Bb8 {[%emt 0:01:01]} 14. a4 {[%emt 0:10:50]} Ne4 {[%emt 0:04:
44]} 15. a5 {[%emt 0:04:51]} Qh6 {[%emt 0:08:04]} 16. Bxe4 {[%emt 0:00:27]}
dxe4 {[%emt 0:00:03]} 17. Qe2 {[%emt 0:00:53]} Qh4+ {[%emt 0:04:34]} 18. g3 {
[%emt 0:00:30]} Qd8 {[%emt 0:04:49]} 19. Nc3 {[%emt 0:09:26]} Nf6 {[%emt 0:04:
44]} 20. Be3 {[%emt 0:00:17]} Bh3 {[%emt 0:03:19]} 21. Kf2 {[%emt 0:03:54]} Qc8
{[%emt 0:02:25]} 22. Rhc1 {[%emt 0:00:32]} Qf5 {[%emt 0:02:09]} 23. Kg1 {
[%emt 0:00:30]} a6 {[%emt 0:00:15]} 24. Na4 {[%emt 0:02:52]} Bd6 {[%emt 0:01:
12]} 25. Nb6 {[%emt 0:03:53]} Rad8 {[%emt 0:00:27]} 26. Ra4 {[%emt 0:00:13]}
Qe6 {[%emt 0:03:06]} 27. Rac4 {[%emt 0:02:19]} Nd5 {[%emt 0:00:40]} 28. Nxd5 {
[%emt 0:01:41]} Qxd5 {[%emt 0:00:37]} 29. Bf2 {[%emt 0:03:05]} f6 {[%emt 0:02:
02]} 30. Ng4 {[%emt 0:00:05]} Bxg4 {[%emt 0:00:17]} 31. Qxg4 {[%emt 0:00:03]}
f5 {[%emt 0:00:11]} 32. Qd1 {[%emt 0:00:17]} Qxa5 {[%emt 0:00:57]} 33. d5 {
[%emt 0:01:35]} Qb5 {[%emt 0:00:26]} 34. b3 {[%emt 0:00:23]} Ba3 {[%emt 0:00:
14]} 35. R1c2 {[%emt 0:02:09]} Rxd5 {[%emt 0:00:54]} 36. Qa1 {[%emt 0:00:26]}
Be7 {[%emt 0:00:31]} 37. Bd4 {[%emt 0:00:09]} Rfd8 {[%emt 0:00:20]} 38. Rc8 {
[%emt 0:00:26]} Bf8 {[%emt 0:00:34]} 39. Rxd8 {[%emt 0:00:59]} Rxd8 {[%emt 0:
00:01]} 40. Rc7 {[%emt 0:00:32]} Qxb3 {[%emt 0:01:02]} 0-1